[Event "4th ChessMates Murmansk 2020"]
[Site "Murmansk"]
[Date "2020.03.14"]
[Round "3.27"]
[White "Baranov, Ivan"]
[Black "Poliato, Irina"]
[Result "0-1"]
[ECO "D37"]
[WhiteElo "1671"]
[BlackElo "1588"]
[Annotator "NA RC"]
[PlyCount "118"]
[EventDate "2020.03.13"]
[EventType "team-tourn"]
[EventCountry "RUS"]
[SourceTitle "playchess.com"]
[Source "ChessBase"]
[SourceQuality "1"]
[TimeControl "5400+30"]

1. d4 {[%emt 0:00:00]} Nf6 {[%emt 0:00:00]} 2. c4 {[%emt 0:00:00]} e6 {[%emt 0:00:00]} 3. Nc3 {[%emt 0:00:51]} d5 {[%emt 0:00:00]} 4. Nf3 {[%emt 0:00:22]} Be7 {[%emt 0:00:00]} 5. e3 {[%emt 0:00:17]} O-O {[%emt 0:00:00]} 6. Be2 {[%emt 0:00:31]} c6 {[%emt 0:00:48]} 7. O-O {[%emt 0:00:22]} Nbd7 {[%emt 0:00:59]} 8. Qc2 {[%emt 0:00:13]} dxc4 {[%emt 0:02:39]} 9. Bxc4 {[%emt 0:02:11]} b5 {[%emt 0:05:01]} 10. Bd3 {[%emt 0:00:28]} Bb7 {[%emt 0:00:31]} 11. b3 {[%emt 0:11:36]} a6 {[%emt 0:03:08]} 12. Bb2 {[%emt 0:01:14]} c5 {[%emt 0:15:21]} 13. Qe2 {[%emt 0:06:36]} Qb6 {[%emt 0:03:02]} 14. Rfd1 {[%emt 0:04:19]} Rfd8 {[%emt 0:01:32]} 15. Rac1 {[%emt 0:16:13]} Rac8 {[%emt 0:00:25]} 16. dxc5 {[%emt 0:02:49]} Bxc5 {[%emt 0:08:06]} 17. h3 {[%emt 0:08:31]} h6 {[%emt 0:05:29]} 18. Bb1 {[%emt 0:14:40]} Bd6 {[%emt 0:02:15]} 19. Nd4 {[%emt 0:04:25]} Bb8 {[%emt 0:01:22]} 20. Nf3 {[%emt 0:06:56]} Ne5 {[%emt 0:11:36]} 21. Nxe5 {[%emt 0:01:13]} Rxd1+ {[%emt 0:01:01]} 22. Rxd1 {[%emt 0:00:49]} Bxe5 {[%emt 0:00:06]} 23. Nd5 {[%emt 0:04:25]} Nxd5 {[%emt 0:06:59]} 24. Bxe5 {[%emt 0:00:03]} f6 {[%emt 0:03:25]} 25. Bd4 {[%emt 0:01:07]} Qc6 {[%emt 0:01:51]} 26. f3 {[%emt 0:03:51]} Kf7 {[%emt 0:11:44]} 27. Qd3 {[%emt 0:01:39]} Ne7 {[%emt 0:00:06]} 28. Bb2 {[%emt 0:03:01]} Qb6 {[%emt 0:00:46]} 29. Qd4 {[%emt 0:00:58]} Qc7 {[%emt 0:03:59]} 30. e4 {[%emt 0:02:16]} Qf4 {[%emt 0:05:16]} 31. Ba3 {[%emt 0:01:49]} Bc6 {[%emt 0:01:59]} 32. Bd6 {[%emt 0:01:06]} Qg5 {[%emt 0:00:45]} 33. Qa7 {[%emt 0:00:56]} Re8 {[%emt 0:00:56]} 34. Qb6 {[%emt 0:00:41]} Rc8 {[%emt 0:00:37]} 35. Qa7 {[%emt 0:00:12]} Re8 {[%emt 0:00:51]} 36. h4 {[%emt 0:00:32]} Qxh4 {[%emt 0:00:55]} 37. Rc1 {[%emt 0:00:15]} f5 {[%emt 0:01:12]} 38. exf5 {[%emt 0:00:52]} Bxf3 {[%emt 0:01:20]} 39. Qf2 {[%emt 0:00:36]} Qxf2+ {[%emt 0:00:26]} 40. Kxf2 {[%emt 0:00:02]} Bd5 {[%emt 0:00:47]} 41. fxe6+ {[%emt 0:00:17]} Kxe6 {[%emt 0:00:15]} 42. Bxe7 {[%emt 0:01:06]} Rxe7 {[%emt 0:00:10]} 43. Kg3 {[%emt 0:00:31]} Kd6 {[%emt 0:00:48]} 44. Rd1 {[%emt 0:00:38]} Re2 {[%emt 0:00:31]} 45. Kh3 {[%emt 0:00:21]} Ke5 {[%emt 0:00:16]} 46. g3 {[%emt 0:00:21]} Be6+ {[%emt 0:00:44]} 47. g4 {[%emt 0:00:27]} h5 {[%emt 0:00:24]} 48. Kh4 {[%emt 0:00:44]} hxg4 {[%emt 0:00:40]} 49. Rc1 {[%emt 0:00:33]} Kf4 {[%emt 0:01:02]} 50. Rf1+ {[%emt 0:00:03]} Ke3 {[%emt 0:00:28]} 51. Kg3 {[%emt 0:00:27]} Bd5 {[%emt 0:01:01]} 52. Kxg4 {[%emt 0:00:51]} Rg2+ {[%emt 0:00:05]} 53. Kh4 {[%emt 0:00:39]} g5+ {[%emt 0:00:14]} 54. Kh5 {[%emt 0:00:22]} Bf3+ {[%emt 0:00:27]} 55. Kh6 {[%emt 0:00:20]} g4 {[%emt 0:00:12]} 56. Kg5 {[%emt 0:00:08]} g3 {[%emt 0:00:54]} 57. Kh4 {[%emt 0:00:11]} Kf4 {[%emt 0:00:23]} 58. Rh1 {[%emt 0:00:47]} Rh2+ {[%emt 0:00:05]} 59. Rxh2 {[%emt 0:00:06]} gxh2 {[%emt 0:00:03]} 0-1

[Event "4th ChessMates Murmansk 2020"]
[Site "Murmansk"]
[Date "2020.03.14"]
[Round "3.28"]
[White "Khmil, Fedor"]
[Black "Chervyakova, Tatiana"]
[Result "1/2-1/2"]
[ECO "B34"]
[WhiteElo "1470"]
[BlackElo "1489"]
[Annotator "NA RC"]
[PlyCount "49"]
[EventDate "2020.03.13"]
[EventType "team-tourn"]
[EventCountry "RUS"]
[SourceTitle "playchess.com"]
[Source "ChessBase"]
[SourceQuality "1"]
[TimeControl "5400+30"]

1. e4 {[%emt 0:00:00]} c5 {[%emt 0:00:00]} 2. Nf3 {[%emt 0:00:00]} Nc6 {[%emt 0:00:09]} 3. d4 {[%emt 0:00:00]} cxd4 {[%emt 0:00:18]} 4. Nxd4 {[%emt 0:00:00]} g6 {[%emt 0:00:12]} 5. Nc3 {[%emt 0:00:01]} Bg7 {[%emt 0:00:20]} 6. Be3 {[%emt 0:00:11]} Nf6 {[%emt 0:00:07]} 7. f3 {[%emt 0:00:08]} O-O {[%emt 0:00:08]} 8. Qd2 {[%emt 0:00:08]} d5 {[%emt 0:00:35]} 9. O-O-O {[%emt 0:04:58]} dxe4 {[%emt 0:11:45]} 10. Nxc6 {[%emt 0:06:08]} Qxd2+ {[%emt 0:00:11]} 11. Bxd2 {[%emt 0:00:36]} bxc6 {[%emt 0:00:11]} 12. Nxe4 {[%emt 0:01:16]} Nxe4 {[%emt 0:00:34]} 13. fxe4 {[%emt 0:00:05]} Bg4 {[%emt 0:01:00]} 14. Re1 {[%emt 0:00:04]} Rfd8 {[%emt 0:00:34]} 15. Ba5 {[%emt 0:06:58]} Rd4 {[%emt 0:07:11]} 16. Bc3 {[%emt 0:02:42]} Bh6+ {[%emt 0:04:20]} 17. Kb1 {[%emt 0:00:10]} Rd7 {[%emt 0:01:59]} 18. Bc4 {[%emt 0:01:02]} Rad8 {[%emt 0:14:09]} 19. Rhf1 {[%emt 0:03:43]} Be6 {[%emt 0:02:18]} 20. Bxe6 {[%emt 0:00:36]} fxe6 {[%emt 0:00:07]} 21. Ba5 {[%emt 0:04:51]} Rf8 {[%emt 0:03:22]} 22. a3 {[%emt 0:08:45]} Bg7 {[%emt 0:05:24]} 23. Kc1 {[%emt 0:04:20]} Bh6+ {[%emt 0:00:13]} 24. Kb1 {[%emt 0:00:05]} Bg7 {[%emt 0:00:05]} 25. Kc1 {[%emt 0:00:57]} 1/2-1/2

[Event "4th ChessMates Murmansk 2020"]
[Site "Murmansk"]
[Date "2020.03.14"]
[Round "3.29"]
[White "Filimonov, Viktor"]
[Black "Rombalskiy, Ivan"]
[Result "1-0"]
[ECO "D41"]
[WhiteElo "1481"]
[BlackElo "1298"]
[Annotator "NA RC"]
[PlyCount "99"]
[EventDate "2020.03.13"]
[EventType "team-tourn"]
[EventCountry "RUS"]
[SourceTitle "playchess.com"]
[Source "ChessBase"]
[SourceQuality "1"]
[TimeControl "5400+30"]

1. d4 {[%emt 0:00:00]} d5 {[%emt 0:00:00]} 2. Nf3 {[%emt 0:00:00]} Nf6 {[%emt 0:00:06]} 3. c4 {[%emt 0:00:10]} e6 {[%emt 0:00:05]} 4. Nc3 {[%emt 0:00:12]} c5 {[%emt 0:00:22]} 5. cxd5 {[%emt 0:01:44]} Nxd5 {[%emt 0:00:45]} 6. e3 {[%emt 0:02:29]} Be7 {[%emt 0:02:52]} 7. Be2 {[%emt 0:03:04]} O-O {[%emt 0:00:37]} 8. O-O {[%emt 0:00:55]} b6 {[%emt 0:03:03]} 9. Qb3 {[%emt 0:05:48]} Bb7 {[%emt 0:02:44]} 10. dxc5 {[%emt 0:02:30]} Bxc5 {[%emt 0:01:05]} 11. Rd1 {[%emt 0:02:53]} Qe7 {[%emt 0:04:22]} 12. a3 {[%emt 0:07:32]} Nd7 {[%emt 0:03:06]} 13. Nxd5 {[%emt 0:09:04]} Bxd5 {[%emt 0:00:23]} 14. Qd3 {[%emt 0:00:57]} Nf6 {[%emt 0:05:49]} 15. b4 {[%emt 0:06:47]} Bd6 {[%emt 0:01:49]} 16. Bb2 {[%emt 0:01:33]} Rfd8 {[%emt 0:02:30]} 17. Nd4 {[%emt 0:07:20]} Be4 {[%emt 0:07:49]} 18. Qb5 {[%emt 0:03:19]} Rac8 {[%emt 0:06:00]} 19. Rac1 {[%emt 0:03:47]} Bb7 {[%emt 0:08:10]} 20. Bf3 {[%emt 0:03:45]} Nd5 {[%emt 0:04:28]} 21. Qe2 {[%emt 0:04:34]} Qg5 {[%emt 0:08:50]} 22. g3 {[%emt 0:03:13]} h6 {[%emt 0:03:18]} 23. Bg2 {[%emt 0:01:04]} Bb8 {[%emt 0:08:23]} 24. b5 {[%emt 0:02:13]} Qe7 {[%emt 0:07:13]} 25. Nf3 {[%emt 0:03:42]} Bd6 {[%emt 0:02:06]} 26. a4 {[%emt 0:00:43]} Bc5 {[%emt 0:00:46]} 27. Ne5 {[%emt 0:01:22]} f6 {[%emt 0:05:07]} 28. Nf3 {[%emt 0:02:36]} Kf7 {[%emt 0:03:10]} 29. Nh4 {[%emt 0:01:55]} Kg8 {[%emt 0:00:19]} 30. Qg4 {[%emt 0:01:18]} Qf7 {[%emt 0:00:41]} 31. Qe2 {[%emt 0:01:26]} Qe7 {[%emt 0:00:17]} 32. Nf3 {[%emt 0:00:46]} Kf7 {[%emt 0:00:27]} 33. Nd4 {[%emt 0:00:25]} Kg8 {[%emt 0:01:35]} 34. Bh3 {[%emt 0:00:56]} Nc7 {[%emt 0:00:08]} 35. Qg4 {[%emt 0:02:07]} Kf7 {[%emt 0:00:29]} 36. Qh5+ {[%emt 0:01:52]} Kg8 {[%emt 0:00:12]} 37. Bg2 {[%emt 0:00:45]} Nd5 {[%emt 0:01:53]} 38. Qe2 {[%emt 0:01:32]} Kf7 {[%emt 0:00:15]} 39. Rc4 {[%emt 0:01:22]} Rd7 {[%emt 0:01:09]} 40. Rdc1 {[%emt 0:00:29]} Qe8 {[%emt 0:01:10]} 41. Nb3 {[%emt 0:00:54]} Bd6 {[%emt 0:01:58]} 42. Rxc8 {[%emt 0:00:12]} Bxc8 {[%emt 0:00:10]} 43. Qh5+ {[%emt 0:00:06]} g6 {[%emt 0:00:25]} 44. Qxh6 {[%emt 0:00:43]} Bb7 {[%emt 0:00:30]} 45. Bxd5 {[%emt 0:00:24]} Bxd5 {[%emt 0:00:18]} 46. Qh7+ {[%emt 0:00:06]} Kf8 {[%emt 0:00:17]} 47. Qh8+ {[%emt 0:00:22]} Kf7 {[%emt 0:00:06]} 48. Qxf6+ {[%emt 0:00:07]} Kg8 {[%emt 0:00:09]} 49. Qh8+ {[%emt 0:00:05]} Kf7 {[%emt 0:00:05]} 50. Qg7# {[%emt 0:00:04]} 1-0

[Event "4th ChessMates Murmansk 2020"]
[Site "Murmansk"]
[Date "2020.03.14"]
[Round "3.30"]
[White "Ivashevskiy, Artem"]
[Black "Simakov, Vadim"]
[Result "1/2-1/2"]
[ECO "A16"]
[WhiteElo "1233"]
[BlackElo "1605"]
[Annotator "NA RC"]
[PlyCount "65"]
[EventDate "2020.03.13"]
[EventType "team-tourn"]
[EventCountry "RUS"]
[SourceTitle "playchess.com"]
[Source "ChessBase"]
[SourceQuality "1"]
[TimeControl "5400+30"]

1. c4 {[%emt 0:00:00]} Nf6 {[%emt 0:00:00]} 2. Nc3 {[%emt 0:00:00]} d6 {[%emt 0:00:00]} 3. Nf3 {[%emt 0:00:00]} g6 {[%emt 0:00:00]} 4. g3 {[%emt 0:00:00]} Bg7 {[%emt 0:00:00]} 5. Bg2 {[%emt 0:00:02]} Nbd7 {[%emt 0:00:00]} 6. O-O {[%emt 0:00:09]} O-O {[%emt 0:00:06]} 7. d4 {[%emt 0:00:40]} Re8 {[%emt 0:01:51]} 8. Qc2 {[%emt 0:00:43]} e5 {[%emt 0:02:34]} 9. dxe5 {[%emt 0:00:35]} Nxe5 {[%emt 0:01:49]} 10. Nxe5 {[%emt 0:01:48]} dxe5 {[%emt 0:02:44]} 11. Rd1 {[%emt 0:01:29]} Qe7 {[%emt 0:01:13]} 12. Bg5 {[%emt 0:00:29]} c6 {[%emt 0:01:57]} 13. Ne4 {[%emt 0:09:20]} Bf5 {[%emt 0:01:39]} 14. Bxf6 {[%emt 0:00:15]} Bxf6 {[%emt 0:00:11]} 15. Nxf6+ {[%emt 0:00:38]} Qxf6 {[%emt 0:00:36]} 16. Be4 {[%emt 0:02:06]} Bxe4 {[%emt 0:00:30]} 17. Qxe4 {[%emt 0:00:07]} Rad8 {[%emt 0:02:30]} 18. Qc2 {[%emt 0:06:04]} h5 {[%emt 0:01:20]} 19. Rxd8 {[%emt 0:00:59]} Rxd8 {[%emt 0:00:07]} 20. Rd1 {[%emt 0:00:09]} Rxd1+ {[%emt 0:01:43]} 21. Qxd1 {[%emt 0:00:08]} Qe7 {[%emt 0:01:19]} 22. Qb3 {[%emt 0:04:08]} Kg7 {[%emt 0:02:06]} 23. Qe3 {[%emt 0:02:04]} b6 {[%emt 0:01:05]} 24. Qc3 {[%emt 0:02:01]} Qd6 {[%emt 0:02:38]} 25. Kg2 {[%emt 0:01:22]} f5 {[%emt 0:01:41]} 26. h4 {[%emt 0:02:42]} Kf6 {[%emt 0:01:29]} 27. Qe3 {[%emt 0:06:03]} c5 {[%emt 0:01:13]} 28. Qh6 {[%emt 0:03:42]} e4 {[%emt 0:01:10]} 29. Qh8+ {[%emt 0:00:27]} Ke6 {[%emt 0:00:27]} 30. Qe8+ {[%emt 0:00:48]} Kf6 {[%emt 0:01:23]} 31. Qh8+ {[%emt 0:01:14]} Ke6 {[%emt 0:03:29]} 32. Qe8+ {[%emt 0:00:13]} Kf6 {[%emt 0:00:13]} 33. Qh8+ {[%emt 0:00:10] Ke5} 1/2-1/2

[Event "4th ChessMates Murmansk 2020"]
[Site "Murmansk"]
[Date "2020.03.14"]
[Round "4.4"]
[White "Vetrov, Ivan"]
[Black "Nikitin, Arseni EST"]
[Result "1/2-1/2"]
[ECO "D12"]
[WhiteElo "1799"]
[BlackElo "1680"]
[Annotator "NA RC"]
[PlyCount "30"]
[EventDate "2020.03.13"]
[EventType "team-tourn"]
[EventCountry "RUS"]
[SourceTitle "playchess.com"]
[Source "ChessBase"]
[SourceQuality "1"]
[TimeControl "5400+30"]

1. d4 {[%emt 0:00:00]} d5 {[%emt 0:00:00]} 2. c4 {[%emt 0:00:00]} c6 {[%emt 0:00:00]} 3. Nf3 Nf6 4. e3 {[%emt 0:01:06]} Bf5 {[%emt 0:00:01]} 5. Be2 {[%emt 0:02:05]} h6 {[%emt 0:01:14]} 6. Qb3 {[%emt 0:01:58]} Qc7 {[%emt 0:02:25]} 7. O-O {[%emt 0:08:50]} e6 {[%emt 0:00:05]} 8. Bd2 {[%emt 0:02:10]} Nbd7 {[%emt 0:00:17]} 9. Bb4 {[%emt 0:02:24]} Qb6 {[%emt 0:03:12]} 10. Bxf8 {[%emt 0:07:36]} Qxb3 {[%emt 0:00:07]} 11. axb3 {[%emt 0:00:07]} Rxf8 {[%emt 0:00:17]} 12. Nc3 {[%emt 0:01:40]} Ke7 {[%emt 0:00:16]} 13. cxd5 {[%emt 0:08:44]} exd5 {[%emt 0:00:14]} 14. b4 {[%emt 0:01:57]} a6 {[%emt 0:01:40]} 15. Na4 {[%emt 0:00:56]} Rab8 {[%emt 0:00:33]} 1/2-1/2

[Event "4th ChessMates Murmansk 2020"]
[Site "Murmansk"]
[Date "2020.03.14"]
[Round "4.7"]
[White "Blokhin, Sofia"]
[Black "Poliato, Irina"]
[Result "1-0"]
[ECO "B58"]
[WhiteElo "1854"]
[BlackElo "1588"]
[Annotator "NA RC"]
[PlyCount "77"]
[EventDate "2020.03.13"]
[EventType "team-tourn"]
[EventCountry "RUS"]
[SourceTitle "playchess.com"]
[Source "ChessBase"]
[SourceQuality "1"]
[TimeControl "5400+30"]

{[%evp 8,76,25,24,37,28,32767,32767,32767,32767,32767,26,32767,45,54,50,89,82,32767,-33,120,102,129,32767,32767,32767,32767,32767,32767,69,70,51,32767,0,233,32767,32767,287,413,415,504,486,497,635,891,969,1261,1008,2886,29985,4382,29982,29985,32767,29997,820,29998,29937,32767,32767,32767,32767,32767,32767,29994,29995,29995,29996,29997,29998,29999]} 1. e4 {[%emt 0:00:00]} c5 {[%emt 0:00:00]} 2. Nf3 {[%emt 0:00:00]} Nc6 {[%emt 0:00:00]} 3. d4 {[%emt 0:00:00]} cxd4 {[%emt 0:00:00]} 4. Nxd4 {[%emt 0:00:00]} Nf6 {[%emt 0:00:17]} 5. Nc3 {[%emt 0:00:15]} d6 {[%emt 0:00:09]} 6. Be2 {[%emt 0:00:28]} a6 {[%emt 0:00:28]} 7. Be3 {[%emt 0:00:11]} e6 {[%emt 0:01:18]} 8. Qd2 {[%emt 0:01:18]} Bd7 {[%emt 0:00:51]} 9. f3 {[%emt 0:01:21]} Be7 {[%emt 0:00:50]} 10. O-O-O {[%emt 0:01:50]} O-O {[%emt 0:00:48]} 11. g4 {[%emt 0:00:22] B80: Sicilian Scheveningen: 6 g3 and 6 Be3, including English Attack.} Rc8 {[%emt 0:01:11]} 12. h4 {[%emt 0:00:48]} b5 {[%emt 0:02:56]} 13. h5 {[%emt 0:02:03] [#]} ({White should play} 13. a3 $14) 13... Ne5 $146 {[%emt 0:07:40]} (13... b4 $11 {keeps the balance.} 14. Nb1 Nxd4 15. Qxd4 Qc7) ({Predecessor:} 13... Na5 14. g5 Ne8 15. g6 h6 16. Bxh6 gxh6 17. Qxh6 Bg5+ 18. Qxg5 Qxg5+ 19. Rd2 fxg6 20. hxg6 Qxg6 {0-1 (66) Ramp,O-Paeschke,A Torgelow 1998}) 14. g5 {[%emt 0:00:42]} Ne8 {[%emt 0:00:11]} (14... b4 $14 15. Nb1 Ne8) 15. f4 {[%emt 0:01:10]} Nc4 {[%emt 0:00:08]} 16. Bxc4 {[%emt 0:00:11]} Rxc4 {[%emt 0:00:04]} 17. g6 {[%emt 0:06:42]} Nf6 {[%emt 0:04:41]} 18. Qg2 {[%emt 0:02:44]} ({White should try} 18. e5 $16) 18... b4 {[%emt 0:04:09]} 19. gxh7+ $1 {[%emt 0:01:20]} Kxh7 {[%emt 0:02:04]} 20. Nb1 {[%emt 0:02:01]} ({White should try} 20. Rdg1 $16 {[%csl Gg1][%cal Rg2g7]} Rg8 21. Nf3) 20... Qc8 $2 {[%emt 0:01:32]} (20... e5 $1 $11 21. Nd2 exd4 22. Nxc4 dxe3) 21. Rdg1 {[%emt 0:01:17]} Rg8 {[%emt 0:00:35]} 22. Nd2 {[%emt 0:07:49]} Rc5 {[%emt 0:07:51]} (22... Rc7 {was called for.} 23. Qg6+ Kh8 24. Qxf7 Be8 25. Qxe6 Rxc2+ 26. Kb1 Qxe6 27. Nxe6 Rxd2) 23. N2f3 {[%emt 0:05:21]} Kh8 {[%emt 0:23:53]} 24. Ng5 {[%emt 0:01:51]} ({Less strong is} 24. h6 g6 $16) 24... Qe8 {[%emt 0:00:27]} 25. Ndf3 {[%emt 0:03:05]} Rc4 {[%emt 0:02:11]} 26. Nh4 {[%emt 0:00:44]} Rf8 {[%emt 0:06:24] [#]} 27. Nxe6 $1 {[%emt 0:03:22] Double Attack, Discovered Attack} Rg8 {[%emt 0:01:06] [#]} 28. Ng6+ $1 {[%emt 0:00:19]} Kh7 {[%emt 0:00:28]} 29. Ng5+ {[%emt 0:02:14]} Kh6 {[%emt 0:00:14]} 30. f5 {[%emt 0:00:46]} d5 {[%emt 0:01:18]} 31. Nxf7+ {[%emt 0:01:10] Discovered Attack (Double check)} Kh7 {[%emt 0:00:09]} 32. Ng5+ {[%emt 0:00:22]} Kh6 {[%emt 0:00:06]} 33. Ne6+ {[%emt 0:00:43]} Kh7 {[%emt 0:00:08]} 34. h6 {[%emt 0:01:37]} Bxe6 {[%emt 0:00:25]} 35. fxe6 {[%emt 0:05:16]} Rxe4 {[%emt 0:01:16] [#]} 36. Nf8+ $1 {[%emt 0:01:46] Promotion} Bxf8 {[%emt 0:00:37]} 37. hxg7+ {[%emt 0:00:08]} Nh5 {[%emt 0:00:12]} 38. gxf8=N+ {[%emt 0:00:18]} Rxf8 {[%emt 0:01:30]} 39. Qg7# {[%emt 0:00:09]} 1-0

[Event "4th ChessMates Murmansk 2020"]
[Site "Murmansk"]
[Date "2020.03.14"]
[Round "4.8"]
[White "Khmil, Fedor"]
[Black "Smirnova, Jekaterina"]
[Result "1/2-1/2"]
[ECO "B46"]
[WhiteElo "1470"]
[BlackElo "1439"]
[Annotator "NA RC"]
[PlyCount "55"]
[EventDate "2020.03.13"]
[EventType "team-tourn"]
[EventCountry "RUS"]
[SourceTitle "playchess.com"]
[Source "ChessBase"]
[SourceQuality "1"]
[TimeControl "5400+30"]

1. e4 {[%emt 0:00:00]} c5 {[%emt 0:00:00]} 2. Nf3 {[%emt 0:00:00]} e6 {[%emt 0:00:00]} 3. d4 {[%emt 0:00:00]} cxd4 {[%emt 0:00:00]} 4. Nxd4 {[%emt 0:00:00]} a6 {[%emt 0:00:06]} 5. Nc3 {[%emt 0:00:00]} Nc6 {[%emt 0:00:11]} 6. Be3 {[%emt 0:00:14]} Bb4 {[%emt 0:00:51]} 7. Be2 {[%emt 0:00:38]} Nf6 {[%emt 0:00:26]} 8. f3 {[%emt 0:00:51]} O-O {[%emt 0:02:41]} 9. O-O {[%emt 0:00:55]} d5 {[%emt 0:03:14]} 10. exd5 {[%emt 0:10:16]} Nxd5 {[%emt 0:00:34]} 11. Nxd5 {[%emt 0:01:04]} exd5 {[%emt 0:00:59]} 12. Kh1 {[%emt 0:01:18]} Re8 {[%emt 0:03:28]} 13. Bf2 {[%emt 0:04:27]} Bd6 {[%emt 0:02:24]} 14. c3 {[%emt 0:02:41]} Nxd4 {[%emt 0:04:12]} 15. cxd4 {[%emt 0:00:16]} Bf5 {[%emt 0:00:44]} 16. Bd3 {[%emt 0:01:44]} Bxd3 {[%emt 0:01:11]} 17. Qxd3 {[%emt 0:00:05]} Bf4 {[%emt 0:05:19]} 18. Rfe1 {[%emt 0:04:06]} Qd7 {[%emt 0:01:52]} 19. g3 {[%emt 0:28:48]} Bd6 {[%emt 0:01:38]} 20. Kg2 {[%emt 0:01:15]} Rac8 {[%emt 0:15:50]} 21. Rac1 {[%emt 0:03:32]} g6 {[%emt 0:00:51]} 22. Qb3 {[%emt 0:09:09]} Bf8 {[%emt 0:02:08]} 23. Rxc8 {[%emt 0:01:00]} Rxc8 {[%emt 0:02:39]} 24. Re5 {[%emt 0:00:12]} Rd8 {[%emt 0:00:17]} 25. Re2 {[%emt 0:02:54]} Rc8 {[%emt 0:12:28]} 26. Re5 {[%emt 0:01:33]} Rd8 {[%emt 0:00:19]} 27. Re2 {[%emt 0:00:25]} Rc8 {[%emt 0:01:04]} 28. Re5 {[%emt 0:00:48]} 1/2-1/2

[Event "4th ChessMates Murmansk 2020"]
[Site "Murmansk"]
[Date "2020.03.14"]
[Round "4.9"]
[White "Mertins, Ostap"]
[Black "Rombalskiy, Ivan"]
[Result "1-0"]
[ECO "B01"]
[WhiteElo "1375"]
[BlackElo "1298"]
[Annotator "NA RC"]
[PlyCount "104"]
[EventDate "2020.03.13"]
[EventType "team-tourn"]
[EventCountry "RUS"]
[SourceTitle "playchess.com"]
[Source "ChessBase"]
[SourceQuality "1"]
[TimeControl "5400+30"]

1. e4 {[%emt 0:00:00]} d5 {[%emt 0:00:00]} 2. exd5 {[%emt 0:00:00]} Qxd5 {[%emt 0:00:00]} 3. Nc3 {[%emt 0:00:01]} Qa5 {[%emt 0:00:00]} 4. Bc4 {[%emt 0:00:15]} Nf6 {[%emt 0:00:07]} 5. d3 {[%emt 0:00:12]} c6 {[%emt 0:00:11]} 6. Bd2 {[%emt 0:00:12]} Qc7 {[%emt 0:00:12]} 7. h3 {[%emt 0:00:16]} Bf5 {[%emt 0:00:52]} 8. Nf3 {[%emt 0:01:33]} e6 {[%emt 0:00:10]} 9. O-O {[%emt 0:02:48]} Bd6 {[%emt 0:00:18]} 10. Re1 {[%emt 0:00:59]} O-O {[%emt 0:00:09]} 11. Nd4 {[%emt 0:01:21]} Bg6 {[%emt 0:04:19]} 12. Bxe6 {[%emt 0:02:06]} fxe6 {[%emt 0:00:14]} 13. Nxe6 {[%emt 0:00:11]} Qb6 {[%emt 0:03:48]} 14. Nxf8 {[%emt 0:00:37]} Bxf8 {[%emt 0:00:07]} 15. b3 {[%emt 0:07:51]} Nbd7 {[%emt 0:00:59]} 16. Ne4 {[%emt 0:04:27]} Nxe4 {[%emt 0:02:09]} 17. dxe4 {[%emt 0:01:08]} Nf6 {[%emt 0:00:11]} 18. e5 {[%emt 0:02:19]} Ne4 {[%emt 0:01:16]} 19. Be3 {[%emt 0:00:33]} Bc5 {[%emt 0:01:00]} 20. Qe2 {[%emt 0:02:42]} Kh8 {[%emt 0:03:56]} 21. c4 {[%emt 0:07:36]} Rf8 {[%emt 0:02:40]} 22. Bxc5 {[%emt 0:02:36]} Qxc5 {[%emt 0:00:59]} 23. Qe3 {[%emt 0:00:45]} Kg8 {[%emt 0:02:26]} 24. Qxc5 {[%emt 0:02:44]} Nxc5 {[%emt 0:00:14]} 25. Rad1 {[%emt 0:02:04]} Nd3 {[%emt 0:02:28]} 26. Re2 {[%emt 0:01:08]} Re8 {[%emt 0:00:36]} 27. Re3 {[%emt 0:02:19]} Nc5 {[%emt 0:07:18]} 28. g4 {[%emt 0:03:05]} a5 {[%emt 0:04:19]} 29. f4 {[%emt 0:00:34]} Be4 {[%emt 0:03:30]} 30. Rde1 {[%emt 0:04:46]} Bc2 {[%emt 0:03:43]} 31. R1e2 {[%emt 0:01:26]} Bd3 {[%emt 0:00:56]} 32. Rd2 {[%emt 0:00:37]} Be4 {[%emt 0:01:08]} 33. a3 {[%emt 0:00:46]} Bb1 {[%emt 0:01:45]} 34. b4 {[%emt 0:01:48]} axb4 {[%emt 0:00:17]} 35. axb4 {[%emt 0:00:06]} Na4 {[%emt 0:00:51]} 36. Re1 {[%emt 0:01:32]} Nc3 {[%emt 0:01:09]} 37. Rc1 {[%emt 0:01:19]} Ne4 {[%emt 0:01:27]} 38. Rd4 {[%emt 0:00:54]} Ng3 {[%emt 0:01:06]} 39. Kf2 {[%emt 0:00:33]} Ne4+ {[%emt 0:01:39]} 40. Ke3 {[%emt 0:01:05]} c5 {[%emt 0:01:46]} 41. bxc5 {[%emt 0:00:53]} Nxc5 {[%emt 0:01:34]} 42. Rxb1 {[%emt 0:00:11]} Ra8 {[%emt 0:00:38]} 43. Ke2 {[%emt 0:01:40]} Ra2+ {[%emt 0:01:10]} 44. Rd2 {[%emt 0:00:11]} Ra3 {[%emt 0:01:00]} 45. Rb5 {[%emt 0:00:43]} Ne4 {[%emt 0:00:39]} 46. Rd8+ {[%emt 0:00:42]} Kf7 {[%emt 0:00:12]} 47. Rxb7+ {[%emt 0:00:02]} Kg6 {[%emt 0:00:03]} 48. Rb6+ {[%emt 0:04:50]} Kf7 {[%emt 0:00:15]} 49. e6+ {[%emt 0:00:34]} Kf6 {[%emt 0:00:18]} 50. Rf8+ {[%emt 0:00:13]} Kg6 {[%emt 0:00:49]} 51. e7+ {[%emt 0:00:01]} Nf6 {[%emt 0:00:01]} 52. e8=Q+ {[%emt 0:00:23]} Kh6 1-0